bitfinex-derivatives/quotes_ETHF0:USTF0_20260214
["timestamp","ask_amount","ask_price","bid_price","bid_amount"]
[1771055604212,1.18919588,2060.3,2059.3,1.1985151]
[1771055605297,1.18919588,2060.0,2059.3,1.1985151]
[1771055609906,1.18919588,2060.0,2059.1,1.1985151]
[1771055612808,1.27795096,2059.9,2059.1,1.1985151]
[1771055613014,1.27795096,2059.7,2059.1,1.1985151]
[1771055613410,1.27795096,2059.7,2058.9,1.18112394]
[1771055618108,1.27795096,2059.8,2058.9,1.18112394]
[1771055620920,4.14368308,2059.5,2058.9,1.18112394]
[1771055621114,1.19335519,2059.4,2058.9,1.18112394]
[1771055622417,2.95032789,2059.3,2058.9,1.19547441]
[1771055622622,4.14368308,2059.3,2058.9,1.19547441]
[1771055622918,1.19335519,2059.3,2058.9,1.19547441]
[1771055623119,0.00382012,2059.5,2058.9,1.19547441]
[1771055624220,0.00382012,2059.5,2059.1,1.19157944]
[1771055624420,6.07835519,2059.8,2059.1,1.19157944]
[1771055625122,1.19335519,2059.7,2059.1,1.19157944]
[1771055625324,1.19742192,2059.7,2059.1,1.19157944]
[1771055628825,0.00406673,2059.7,2059.1,1.19157944]
[1771055632528,1.19742192,2059.7,2059.1,1.19157944]
[1771055636623,1.19335519,2059.6,2059.0,1.19157944]
[1771055640525,1.19335519,2059.6,2058.9,1.19547441]
[1771055640831,1.19335519,2059.4,2058.9,1.19547441]
[1771055644233,1.19335519,2059.4,2058.9,0.00389497]
[1771055644933,4.16950519,2059.1,2058.9,0.00389497]
[1771055645135,4.16950519,2059.1,2058.8,0.43975019]
[1771055646031,2.95121561,2059.2,2058.8,0.44420203]
[1771055646233,1.21828958,2059.1,2058.8,0.00445184]
[1771055647736,1.21828958,2059.1,2058.8,1.27032655]
[1771055649138,4.16950519,2059.2,2058.8,1.27032655]
[1771055649644,1.21828958,2059.1,2058.8,1.27032655]
[1771055650848,1.21828958,2059.3,2058.8,1.27032655]
[1771055651242,1.21828958,2059.1,2058.8,1.27032655]
[1771055651951,1.21828958,2059.1,2058.8,0.00445184]
[1771055653447,1.21828958,2059.1,2058.8,1.27032655]
[1771055653650,1.21828958,2058.9,2058.3,1.26587471]
[1771055653847,1.21828958,2058.7,2058.3,1.26587471]
[1771055654048,1.21828958,2058.9,2058.3,1.26587471]
[1771055654350,4.16950519,2059.2,2058.5,1.26587471]
[1771055654649,4.16950519,2059.2,2058.5,1.26981422]
[1771055655649,2.95121561,2059.2,2058.5,1.26981422]
[1771055655851,4.16950519,2059.2,2058.5,1.26981422]
[1771055659352,1.21828958,2059.2,2058.7,1.26587471]
[1771055661861,1.21828958,2059.1,2058.7,1.26587471]
[1771055663656,1.21828958,2059.1,2058.5,0.00393951]
[1771055664459,1.21828958,2059.1,2058.5,1.26981422]
[1771055664862,1.21828958,2058.9,2058.5,0.00393951]
[1771055665765,1.21828958,2058.9,2058.5,1.26981422]
[1771055666858,1.21828958,2058.9,2058.5,0.00393951]
[1771055667258,1.21828958,2058.9,2058.5,1.26981422]
[1771055667663,1.21828958,2058.9,2058.5,0.00393951]
[1771055668463,1.21828958,2058.9,2058.0,1.26587471]
[1771055669167,1.21828958,2058.7,2058.0,1.26587471]
[1771055669461,1.21828958,2058.7,2058.0,1.2702211]
[1771055671459,1.20136679,2058.5,2058.0,1.2702211]
[1771055671856,1.20136679,2058.5,2058.0,0.00434639]
[1771055672060,1.20136679,2058.5,2058.0,1.24613832]
[1771055673159,1.20136679,2058.7,2058.0,1.24613832]
[1771055678673,1.20136679,2058.8,2058.0,1.24613832]
[1771055679373,1.20136679,2059.0,2058.2,1.24179193]
[1771055682681,1.20136679,2059.0,2058.2,1.48485193]
[1771055685981,4.169,2059.3,2058.2,1.48485193]
[1771055686180,1.20052691,2059.2,2058.2,1.48485193]
[1771055694487,1.20052691,2059.2,2058.3,1.2851605]
[1771055694789,1.20052691,2059.2,2058.5,1.2851605]
[1771055707195,1.23965675,2059.0,2058.3,1.21405013]
[1771055708298,1.23965675,2058.8,2058.2,1.21405013]
[1771055710300,1.23965675,2058.8,2058.1,1.21405013]
[1771055710499,1.23965675,2058.6,2058.0,8.699513]
[1771055710800,1.23965675,2058.4,2058.0,0.00434639]
[1771055711398,1.23965675,2058.4,2057.7,1.21405013]
[1771055712293,1.23965675,2058.4,2057.7,1.21787942]
[1771055712701,1.23965675,2058.2,2057.7,1.21787942]
[1771055712898,1.24448212,2058.2,2057.7,1.21787942]
[1771055718000,2.95109521,2058.1,2057.7,0.00382929]
[1771055718201,1.23965675,2058.0,2057.5,1.21405013]
[1771055719104,1.23965675,2058.0,2057.5,1.21883597]
[1771055726805,1.23965675,2057.8,2057.5,1.21883597]
[1771055727610,1.23965675,2057.9,2057.5,1.21883597]
[1771055736813,4.19380181,2057.9,2057.5,0.00478584]
[1771055737012,1.22056648,2057.8,2057.5,0.00478584]
[1771055737516,1.22056648,2057.8,2057.5,1.27204076]
[1771055737814,4.17471154,2057.9,2057.5,1.27204076]
[1771055739018,1.22056648,2057.8,2057.5,1.27204076]
[1771055740117,1.22056648,2057.8,2057.5,1.18374768]
[1771055742121,1.22056648,2057.8,2057.5,0.00478584]
[1771055742519,1.22056648,2057.8,2057.5,1.18374768]
[1771055743321,1.22056648,2057.8,2057.5,0.00478584]
[1771055745017,1.19373003,2057.6,2057.2,1.17896184]
[1771055745219,1.19373003,2057.6,2057.0,1.17896184]
[1771055746016,1.19373003,2057.4,2057.0,1.18319981]
[1771055750525,1.19373003,2057.4,2057.0,0.00423797]
[1771055752827,1.19373003,2057.4,2057.0,1.18319981]
[1771055754236,1.19373003,2057.6,2057.1,1.17896184]
[1771055756835,1.19373003,2057.2,2057.0,0.00423797]
[1771055758334,4.14787509,2057.1,2056.8,1.17896184]
[1771055758535,4.14787509,2057.1,2056.4,1.17896184]
[1771055759237,1.19373003,2057.0,2056.4,1.18381975]
[1771055762937,1.1647608,2056.8,2056.4,1.18381975]
[1771055764439,1.1647608,2056.8,2056.4,0.00485791]
[1771055765736,1.1647608,2057.0,2056.4,1.20545593]
[1771055767343,1.1647608,2056.6,2056.4,0.00485791]
[1771055767534,0.00498153,2056.6,2056.4,1.20545593]
[1771055776350,2.95414506,2056.9,2056.4,1.20545593]
[1771055777149,4.11890586,2056.9,2056.4,1.20545593]
[1771055777349,4.12337264,2056.9,2056.4,1.20545593]
[1771055778847,1.1647608,2056.8,2056.4,1.20545593]
[1771055782353,4.11890586,2056.7,2056.4,1.20545593]
[1771055782859,1.1647608,2056.6,2056.4,0.00485791]
[1771055784550,1.1647608,2056.4,2055.9,1.44392802]
[1771055784751,1.1647608,2056.5,2055.9,1.44392802]
[1771055784950,1.1647608,2056.5,2056.0,1.20059802]
[1771055785657,2.96249018,2056.9,2056.0,1.20470552]
[1771055785856,1.1647608,2056.8,2056.0,1.20470552]
[1771055786755,1.16922758,2056.9,2056.0,1.20470552]
[1771055794369,1.17070808,2056.8,2056.0,1.20470552]
[1771055800870,1.18192714,2056.6,2056.0,1.20470552]
[1771055802673,1.18192714,2056.6,2056.0,0.0041075]
[1771055803066,1.18192714,2056.6,2056.0,1.18024016]
[1771055804473,1.18192714,2056.4,2055.9,1.17613266]
[1771055805467,1.18192714,2056.6,2055.9,1.18214886]
[1771055809974,1.18192714,2056.8,2055.9,1.18214886]
[1771055818383,1.18639392,2056.9,2056.1,1.17613266]
[1771055820079,1.18639392,2056.9,2056.2,0.2433]
[1771055820282,1.18639392,2056.9,2056.3,1.17613266]
[1771055821475,0.00446678,2056.9,2056.3,1.17613266]
[1771055822779,1.14893697,2056.9,2056.3,1.17613266]
[1771055825184,0.00446678,2056.9,2056.3,1.17613266]
[1771055825375,0.00446678,2056.9,2056.5,1.19826842]
[1771055825581,1.14447019,2057.3,2056.5,1.19826842]
[1771055826580,1.15023024,2057.3,2056.5,1.19826842]
[1771055829391,1.15023024,2057.3,2056.7,1.19826842]
[1771055838600,0.00576005,2057.3,2056.7,1.19826842]
[1771055838801,1.15023024,2057.3,2056.7,1.19826842]
[1771055842208,1.14447019,2057.2,2056.7,1.19826842]
[1771055842407,1.14447019,2057.2,2056.6,0.24325]
[1771055843707,1.14447019,2057.2,2056.6,1.44151842]
[1771055846908,4.10142461,2057.0,2056.6,1.44151842]
[1771055848203,0.00576005,2057.3,2056.6,1.44151842]
[1771055848204,2.95695442,2057.2,2056.6,1.44151842]
[1771055848910,4.10142461,2057.2,2056.6,1.44151842]
[1771055850013,1.15023024,2057.3,2056.6,1.44151842]
[1771055850311,1.15023024,2057.3,2056.7,1.19826842]
[1771055851118,4.5321,2057.9,2057.1,1.24177343]
[1771055851119,1.1997407,2057.8,2057.1,1.24177343]
[1771055852109,1.20464823,2057.8,2057.1,1.24177343]
[1771055852310,0.00490753,2057.8,2057.5,1.24177343]
[1771055852509,1.1997407,2058.6,2057.9,1.24177343]
[1771055852811,1.1997407,2058.6,2058.0,1.24177343]
[1771055853413,1.2058685,2058.6,2058.0,1.24772986]
[1771055854115,1.2058685,2058.6,2058.0,1.49080986]
[1771055856311,1.1997407,2058.5,2058.0,1.49080986]
[1771055856908,1.1997407,2058.3,2058.0,0.2441289]
[1771055857212,1.1997407,2058.1,2057.5,1.24177343]
[1771055857509,1.1997407,2058.3,2057.7,1.24177343]
[1771055857809,1.1997407,2058.5,2058.1,1.24177343]
[1771055858009,1.1997407,2058.5,2058.1,1.24550817]
[1771055860117,1.18704435,2058.5,2058.1,1.24550817]
[1771055861411,1.18704435,2058.5,2058.1,0.00373474]
[1771055861616,1.18704435,2058.3,2058.1,0.00373474]
[1771055863614,1.19317215,2058.6,2058.2,1.18239276]
[1771055863814,1.19317215,2058.6,2058.1,1.1861275]
[1771055864015,1.18704435,2058.4,2058.1,0.00373474]
[1771055864211,1.18704435,2058.4,2058.1,1.1861275]
[1771055864410,0.0061278,2058.6,2058.1,1.1861275]
[1771055864812,0.0061278,2058.6,2058.2,1.18239276]
[1771055865014,1.18704435,2058.7,2058.2,1.18239276]
[1771055865713,1.18704435,2058.6,2058.2,1.18239276]
[1771055865918,1.19210009,2058.6,2058.1,1.1861275]
[1771055866120,1.18704435,2058.4,2058.1,0.00373474]
[1771055866918,1.18704435,2058.4,2058.1,1.1861275]
[1771055869118,1.18704435,2058.4,2058.1,0.00373474]
[1771055869323,1.18704435,2058.2,2057.5,1.18239276]
[1771055870124,1.18704435,2058.2,2057.7,1.18239276]
[1771055871019,1.18704435,2058.0,2057.6,0.24312]
[1771055872517,1.18704435,2058.0,2057.6,1.42551276]
[1771055873727,1.18704435,2058.0,2057.6,0.24312]
[1771055877128,1.18704435,2058.0,2057.6,1.42551276]
[1771055881332,1.18704435,2058.0,2057.6,0.24312]
[1771055883134,1.18704435,2058.0,2057.5,1.19094402]
[1771055883135,1.18704435,2058.0,2057.5,0.00418231]
[1771055886137,1.18704435,2058.0,2057.1,1.42995171]
[1771055886639,1.18704435,2058.0,2057.1,0.24319]
[1771055887036,1.18704435,2058.0,2057.1,0.24938738]
[1771055887737,4.25378019,2057.9,2057.1,0.24938738]
[1771055888039,1.21022957,2057.8,2057.1,0.24938738]
[1771055892940,1.21022957,2057.5,2057.1,0.24938738]
[1771055893842,2.95555371,2057.4,2057.1,0.24938738]
[1771055894042,1.21022957,2057.3,2057.1,0.24325965]
[1771055895440,1.21022957,2057.3,2056.6,3.19880371]
[1771055895646,1.21022957,2057.3,2056.7,1.18676171]
[1771055895943,1.21022957,2057.3,2056.8,1.18676171]
[1771055896545,1.21022957,2057.3,2056.8,1.19040898]
[1771055896739,1.21022957,2057.7,2057.0,1.18676171]
[1771055896939,1.21022957,2057.6,2057.0,1.18676171]
[1771055897146,1.21022957,2057.4,2057.0,1.18676171]
[1771055899442,2.95555371,2057.5,2056.9,0.24321]
[1771055899443,1.21022957,2057.2,2056.9,1.42997171]
[1771055899650,1.21022957,2057.2,2056.9,0.24321]
[1771055900945,2.95555371,2057.1,2056.8,0.00364727]
[1771055901144,1.21022957,2057.0,2056.8,0.00364727]
[1771055901648,1.21022957,2056.9,2056.4,0.24327]
[1771055901951,1.21022957,2056.9,2056.4,1.43003171]
[1771055902648,1.21022957,2056.9,2056.4,1.43465612]
[1771055903248,1.21022957,2056.7,2056.4,0.24789441]
[1771055903441,1.21022957,2056.7,2056.4,0.00462441]
[1771055904547,1.21022957,2056.7,2056.4,1.19138612]
[1771055904749,1.21022957,2056.9,2056.4,1.19138612]
[1771055905651,1.21022957,2057.0,2056.4,1.19138612]
[1771055915563,1.23779808,2057.1,2056.4,1.19138612]
[1771055916159,0.00522007,2057.1,2056.8,1.2283241]
[1771055916359,1.23257801,2057.4,2056.8,1.2283241]
[1771055917563,1.23865676,2057.4,2056.8,1.2283241]
[1771055924864,0.00607875,2057.4,2056.8,1.2283241]
[1771055928474,1.22028895,2057.4,2056.8,1.2283241]
[1771055930572,0.00607875,2057.4,2057.0,1.27056272]
[1771055932577,1.2142102,2057.6,2057.0,1.27056272]
[1771055933680,1.21833646,2057.6,2057.0,1.27056272]
[1771055937574,0.00412626,2057.6,2057.0,1.27056272]
[1771055939482,1.2142102,2058.0,2057.2,1.27056272]
[1771055940681,1.21932817,2058.0,2057.2,1.27056272]
[1771055942583,1.20089106,2057.9,2057.2,1.27056272]
[1771055951083,1.20089106,2057.7,2057.1,1.46102699]
[1771055954489,1.20089106,2057.9,2057.1,1.46102699]
[1771055956389,1.20089106,2057.7,2057.1,1.46102699]
[1771055962684,1.20089106,2057.5,2056.9,1.21783699]
[1771055963487,1.20089106,2057.8,2057.0,0.2432]
[1771055963993,1.20089106,2057.8,2057.1,1.21783699]
[1771055968994,4.15583807,2057.7,2057.1,1.21783699]
[1771055971895,1.20708327,2057.6,2057.1,1.21783699]
[1771055972091,4.16203028,2057.5,2057.1,1.21783699]
[1771055972996,1.20708327,2057.4,2057.1,1.21783699]
[1771055973197,4.16203028,2057.5,2057.1,1.21783699]
[1771055973702,1.20708327,2057.5,2057.1,1.21783699]
[1771055977400,1.20708327,2057.4,2057.1,1.21783699]
[1771055978699,1.20708327,2057.4,2057.0,1.47675697]
[1771055991011,1.30654908,2057.4,2057.0,1.47675697]
[1771055991407,4.26149609,2057.5,2057.0,1.47675697]
[1771055991812,1.30654908,2057.4,2057.0,1.47675697]
[1771055992205,1.30654908,2057.2,2056.8,1.19178919]
[1771055992812,4.26149609,2057.3,2056.8,1.19178919]
[1771055993916,1.30654908,2057.2,2056.8,1.19178919]
[1771055994313,4.26149609,2057.3,2056.8,1.19178919]
[1771055996815,1.30654908,2057.4,2056.8,1.19178919]
[1771056000409,1.30654908,2057.6,2056.8,1.19178919]
[1771056020435,1.30654908,2057.6,2056.9,1.25364561]
[1771056020630,1.30654908,2057.6,2056.8,2.95526328]
[1771056020631,1.19209441,2057.9,2057.3,1.25364561]
[1771056023230,1.19209441,2057.9,2057.5,1.25364561]
[1771056025535,0.00511797,2058.0,2057.5,1.25364561]
[1771056025731,1.19721238,2058.0,2057.5,1.25364561]
[1771056028737,1.19209441,2057.9,2057.5,1.25364561]
[1771056028940,1.19209441,2057.9,2057.2,1.25364561]
[1771056029635,1.19721238,2058.0,2057.2,1.25364561]
[1771056031041,1.19721238,2058.0,2057.4,1.2462771]
[1771056038143,0.00511797,2058.0,2057.4,1.2462771]
[1771056044938,0.00511797,2058.0,2057.6,1.26518407]
[1771056045144,1.20588899,2058.5,2057.6,1.26518407]
[1771056046142,1.21060563,2058.5,2057.6,1.26518407]
[1771056046842,1.21060563,2058.5,2057.7,0.24312]
[1771056047046,1.21060563,2058.5,2057.8,1.26518407]
[1771056047749,0.00471664,2058.5,2057.8,1.26518407]
[1771056048142,1.21060563,2058.5,2057.8,1.26518407]
[1771056054351,0.00471664,2058.5,2057.8,1.26518407]
[1771056054650,1.21060563,2058.5,2057.8,1.26518407]
[1771056060154,1.21060563,2058.5,2057.7,0.24312]
[1771056060453,1.20588899,2058.3,2057.7,1.50830407]
[1771056060854,1.21060563,2058.5,2057.7,1.50830407]
[1771056062753,1.21060563,2058.5,2057.7,1.26518407]
[1771056070558,0.00471664,2058.5,2057.9,1.31029878]
[1771056070859,1.29690224,2058.9,2057.9,1.31590749]
[1771056071453,1.29724969,2059.0,2057.9,1.31590749]
[1771056071655,1.29724969,2058.9,2057.9,1.31590749]
[1771056074960,1.29724969,2058.9,2058.1,1.31029878]
[1771056075263,1.30279478,2059.0,2058.1,1.31029878]
[1771056076763,0.00342409,2059.0,2058.1,1.31029878]
[1771056077063,0.00342409,2059.0,2058.3,1.31029878]
[1771056077259,0.00342409,2059.0,2058.5,1.31029878]
[1771056080367,1.29937069,2059.2,2058.5,1.31029878]
[1771056081362,1.30541212,2059.2,2058.5,1.31029878]
[1771056085169,0.00604143,2059.2,2058.5,1.31029878]
[1771056086172,1.30541212,2059.2,2058.5,1.31029878]
[1771056090871,1.29937069,2059.1,2058.5,1.31029878]
[1771056091869,1.27977972,2059.8,2059.1,1.2292014]
[1771056092070,2.95081669,2059.8,2059.1,1.2292014]
[1771056092273,1.27977972,2059.7,2059.1,1.2292014]
[1771056092973,1.28343252,2059.7,2059.1,1.2292014]
[1771056094374,1.27977972,2059.6,2059.1,1.2292014]
[1771056096478,4.23424921,2059.7,2059.1,1.2292014]
[1771056096776,1.27977972,2059.6,2059.1,1.2292014]
[1771056097373,4.23424921,2059.7,2059.1,1.2292014]
[1771056098273,1.28343252,2059.7,2059.1,1.2292014]
[1771056098777,1.27977972,2060.6,2059.7,1.2292014]
[1771056098978,1.27977972,2060.5,2059.7,1.2292014]
[1771056099579,1.28803299,2061.1,2060.0,2.95081669]
[1771056099782,4.23884968,2060.7,2060.1,1.22388035]
[1771056099972,1.28803299,2060.6,2060.1,1.22388035]
[1771056100177,1.28803299,2060.6,2060.0,0.00401866]
[1771056100178,1.28803299,2060.4,2060.0,1.22789901]
[1771056100879,2.95081669,2060.6,2060.0,1.22789901]
[1771056101481,1.28803299,2060.7,2060.0,1.22789901]
[1771056101880,0.00401662,2061.1,2060.6,2.95081669]
[1771056102078,1.28803299,2061.6,2060.9,1.22388035]
[1771056102079,1.28803299,2061.5,2060.9,1.22388035]
[1771056102284,1.28803299,2061.3,2060.9,1.22388035]
[1771056102686,1.28803299,2061.1,2060.5,1.22388035]
[1771056102882,4.23884968,2060.7,2060.3,1.22388035]
[1771056103081,4.23884968,2060.7,2060.0,1.22789901]
[1771056103082,1.28803299,2060.4,2060.0,1.22789901]
[1771056103486,1.28803299,2060.4,2060.0,1.20905018]
[1771056103689,1.28803299,2060.4,2060.0,1.19921557]
[1771056104088,1.28803299,2060.4,2059.7,1.22388035]
[1771056104488,2.95081669,2060.5,2059.9,1.22388035]
[1771056104989,4.23884968,2060.5,2059.9,1.22388035]
[1771056106092,0.00341514,2060.7,2060.1,1.22388035]
[1771056106989,0.00341514,2060.7,2060.3,1.22388035]
[1771056107195,1.28803299,2061.0,2060.3,1.22388035]
[1771056107395,1.28803299,2060.8,2060.3,1.22388035]
[1771056107593,2.95081669,2060.9,2060.3,1.22388035]
[1771056108297,4.24232156,2060.9,2060.3,1.22388035]
[1771056108593,2.95081669,2060.5,2059.9,1.22388035]
[1771056108999,0.00347188,2060.9,2059.9,1.22388035]
[1771056109000,1.28803299,2060.6,2059.9,1.22388035]
[1771056109899,0.00347188,2060.9,2059.7,0.00617522]
[1771056109900,0.00347188,2060.9,2060.2,1.22388035]
[1771056110095,1.28803299,2060.7,2060.2,1.22388035]
[1771056110397,4.23884968,2060.6,2060.2,1.22388035]
[1771056110792,1.28803299,2060.5,2060.2,1.22388035]
[1771056110990,4.23884968,2060.6,2060.2,1.22388035]
[1771056111190,4.23884968,2060.8,2060.2,1.22388035]
[1771056111692,1.28803299,2060.8,2060.2,1.22388035]
[1771056111896,1.28701238,2060.9,2060.2,1.22388035]
[1771056112099,4.23782907,2060.9,2060.2,1.22388035]
[1771056112507,2.95428857,2060.9,2060.2,1.22388035]
[1771056112706,4.2377852,2060.9,2060.2,1.22388035]
[1771056112898,2.95428857,2060.9,2060.2,1.22388035]
[1771056113092,4.23778274,2060.9,2060.2,1.22388035]
[1771056113402,0.00347188,2060.9,2060.3,1.22388035]
[1771056115202,1.29150487,2060.9,2060.3,1.22388035]
[1771056115905,1.28803299,2060.8,2060.3,1.22388035]
[1771056116995,0.00347188,2060.9,2060.3,1.22388035]
[1771056117301,0.00347188,2060.9,2060.3,4.17469704]
[1771056117502,0.00347188,2060.9,2060.4,1.22388035]
[1771056118301,1.29150487,2060.9,2060.4,1.22388035]
[1771056118501,1.28803299,2060.8,2060.4,1.22388035]
[1771056119200,1.29150487,2060.9,2060.4,1.22388035]
[1771056121010,1.20258725,2060.8,2060.4,1.22388035]
[1771056121307,1.20605913,2060.9,2060.4,1.22388035]
[1771056121808,0.00347188,2060.9,2060.4,1.22388035]
[1771056122406,2.95428857,2060.9,2060.1,2.95081669]
[1771056122608,1.20258725,2060.8,2060.2,1.30615259]
[1771056123205,1.20258725,2060.6,2060.0,1.30615259]
[1771056124607,4.15687582,2060.9,2060.2,1.30615259]
[1771056124805,1.20258725,2060.8,2060.2,1.30615259]
[1771056125408,1.20258725,2060.6,2060.0,1.30615259]
[1771056125600,1.20258725,2060.8,2060.0,1.30615259]
[1771056126306,1.20258725,2060.6,2060.0,1.30615259]
[1771056130808,1.20258725,2060.7,2060.1,1.30615259]
[1771056131209,1.20258725,2060.6,2060.1,1.30615259]
[1771056135919,1.20258725,2060.6,2060.0,1.30615259]
[1771056137920,1.20258725,2060.6,2059.9,1.14285]
[1771056138214,1.20258725,2060.6,2059.9,2.44900259]
[1771056138615,1.20258725,2060.6,2060.0,1.30615259]
[1771056145724,1.20258725,2060.4,2059.9,2.44900259]
[1771056146421,1.20258725,2060.4,2059.9,1.14285]
[1771056146821,1.20258725,2060.2,2059.9,0.9]
[1771056147025,0.00347188,2060.9,2059.7,8.88955459]
[1771056147026,1.20258725,2059.9,2059.7,0.00617522]
[1771056148322,1.20258725,2060.0,2059.7,1.31232781]
[1771056149723,4.15340394,2060.4,2059.8,1.30615259]
[1771056150424,1.20258725,2060.3,2059.8,1.30615259]
[1771056150930,4.15340394,2060.4,2059.8,1.30615259]
[1771056151127,1.20258725,2060.4,2059.8,1.30615259]
[1771056153126,1.20258725,2060.4,2059.7,0.00617522]
[1771056153628,1.20258725,2060.4,2059.7,1.25373575]
[1771056163635,6.05518129,2060.8,2059.9,1.22398178]
[1771056163841,1.23618129,2060.7,2059.9,1.22398178]
[1771056168040,0.00347188,2060.9,2059.9,1.22398178]
[1771056168245,1.23618129,2061.5,2060.6,1.22398178]
[1771056169142,1.24093503,2061.5,2060.6,1.22398178]
[1771056169345,1.23618129,2061.2,2060.6,1.22398178]
[1771056169743,0.00475374,2061.5,2060.6,1.22398178]
[1771056169944,7.65164794,2064.5,2062.6,5.9665]
[1771056170147,1.3098877,2064.7,2063.3,2.94746132]
[1771056170348,1.3098877,2064.5,2063.1,0.00136638]
[1771056170746,1.3098877,2064.3,2063.1,0.00136638]
[1771056170945,1.3098877,2064.3,2063.2,0.00121133]
[1771056171146,1.30996523,2063.9,2062.6,0.00121133]
[1771056171454,1.30996523,2063.9,2063.0,0.00121133]
[1771056171455,0.99472904,2063.9,2063.0,0.00121133]
[1771056171749,1.23618129,2063.7,2063.1,0.7577805]
[1771056171945,0.76337045,2063.7,2063.2,0.7577805]
[1771056172146,8.31710642,2064.0,2063.4,0.70321223]
[1771056172343,1.23618129,2063.8,2063.5,0.7577805]
[1771056172546,1.23618129,2064.0,2063.6,0.7577805]
[1771056172746,1.23618129,2064.2,2063.7,1.46299769]
[1771056172948,1.23618129,2064.2,2063.8,1.46271227]
[1771056173144,1.23618129,2064.2,2063.2,0.00526279]
[1771056173145,1.23618129,2064.1,2063.5,0.70493177]
[1771056173554,9.55328771,2064.0,2063.5,0.70493177]
[1771056173749,1.23618129,2064.3,2063.5,0.70493177]
[1771056174855,1.23618129,2064.1,2063.5,0.70493177]
[1771056175051,1.23618129,2064.1,2063.3,1.22398178]
[1771056175350,1.23618129,2063.9,2063.3,1.22398178]
[1771056175547,1.23618129,2063.9,2063.2,0.00526279]
[1771056175749,1.23618129,2063.7,2063.2,1.22924457]
[1771056176249,1.23618129,2063.5,2063.2,1.22924457]
[1771056176448,1.23618129,2063.5,2063.2,0.00526279]
[1771056177047,1.23618129,2063.4,2063.2,0.00526279]
[1771056177754,8.31710642,2063.3,2063.2,0.00526279]
[1771056178053,9.55328771,2063.5,2063.2,1.22924457]
[1771056178455,9.55328771,2063.5,2063.2,0.00526279]
[1771056179548,9.55328771,2063.5,2063.2,1.22924457]
[1771056179850,1.23618129,2064.0,2063.2,1.22924457]
[1771056180255,1.23618129,2064.0,2063.2,0.00526279]
[1771056182252,1.23618129,2064.0,2062.9,1.37481245]
[1771056183353,1.23618129,2064.0,2062.9,1.38043851]
[1771056185159,1.23618129,2064.0,2063.0,0.66042625]
[1771056185353,1.23618129,2064.0,2063.1,0.66042625]
[1771056185556,1.23618129,2064.0,2063.2,0.66042625]
[1771056185751,1.23618129,2064.0,2063.3,0.66042625]
[1771056185961,1.23618129,2064.0,2063.0,1.37481245]
[1771056186155,1.23618129,2064.0,2063.1,0.64704469]
[1771056186354,1.23618129,2064.0,2063.2,0.64704469]
[1771056186554,1.23618129,2064.0,2063.1,1.37481245]
[1771056186755,1.23618129,2064.0,2063.2,0.64726487]
[1771056186956,1.23618129,2064.0,2063.1,1.37481245]
[1771056187156,1.23618129,2064.0,2063.2,0.64727374]
[1771056187356,1.23618129,2064.0,2063.3,0.64727374]
[1771056187555,1.23618129,2064.0,2063.1,1.37481245]
[1771056187859,1.23618129,2064.0,2063.2,0.64782031]
[1771056188057,1.23618129,2064.0,2063.3,0.64782031]
[1771056188252,1.23618129,2064.0,2063.1,1.37481245]
[1771056188460,1.23618129,2064.0,2063.2,0.64825257]
[1771056188663,1.23618129,2064.0,2063.3,0.64825257]
[1771056188856,1.23618129,2064.0,2063.1,1.37481245]
[1771056189052,1.23618129,2064.0,2063.2,2.0230651]
[1771056189257,1.23618129,2064.0,2063.3,2.0230651]
[1771056189465,1.23618129,2064.0,2063.4,0.64825265]
[1771056189658,1.23618129,2064.0,2063.3,1.37481245]
[1771056189858,1.23618129,2064.0,2063.4,2.02345068]
[1771056190060,1.23618129,2064.0,2063.4,1.37481245]
[1771056190263,1.23618129,2064.0,2063.5,2.02394495]
[1771056190561,1.23618129,2064.0,2063.6,0.6491325]
[1771056190758,1.23618129,2064.0,2063.5,1.37481245]
[1771056190962,1.23618129,2064.0,2063.6,2.02381315]
[1771056191258,1.23618129,2064.0,2063.7,0.6490007]
[1771056191455,0.00570315,2064.5,2062.9,0.00562606]
[1771056191456,1.33112638,2064.3,2063.8,2.02421592]
[1771056191657,1.33112638,2064.3,2063.8,1.37481245]
[1771056192059,1.33112638,2064.3,2063.9,2.02414549]
[1771056192263,1.33112638,2064.4,2064.0,0.64998771]
[1771056192463,1.33112638,2064.4,2064.1,0.64987506]
[1771056192763,1.33112638,2064.4,2063.1,0.24247]
[1771056192764,1.33112638,2064.4,2063.5,1.37481245]
[1771056192959,1.33112638,2064.4,2063.7,1.37481245]
[1771056193159,1.33112638,2064.4,2063.8,0.64999023]
[1771056193361,1.33112638,2064.4,2063.9,0.64999023]
[1771056193562,1.33112638,2064.4,2063.7,1.37481245]
[1771056193763,1.33112638,2064.4,2063.8,0.60771565]
[1771056193958,1.33682953,2064.5,2064.0,1.37481245]
[1771056194166,1.33682953,2064.5,2064.1,0.60838898]
[1771056194366,1.33682953,2064.5,2064.0,1.37481245]
[1771056194565,1.33682953,2064.5,2064.1,0.60844109]
[1771056194765,1.33682953,2064.5,2064.0,1.37481245]
[1771056195065,1.33682953,2064.5,2064.1,0.60843117]
[1771056195268,1.33682953,2064.5,2064.2,0.60843117]
[1771056195465,1.33682953,2064.5,2064.3,0.60843117]
[1771056195664,1.33682953,2064.5,2064.0,1.37481245]
[1771056195965,1.33682953,2064.5,2064.1,1.98415601]
[1771056196163,0.00570315,2064.5,2064.2,1.98415601]
[1771056196463,1.33112638,2064.9,2064.4,1.37481245]
[1771056196668,1.33112638,2065.9,2064.6,1.37481245]
[1771056196966,1.33112638,2065.7,2064.8,1.37481245]
[1771056197159,1.33112638,2065.7,2065.0,1.37481245]
[1771056197363,1.33666639,2065.7,2065.1,0.60934356]
[1771056197559,1.33666639,2065.7,2064.2,1.37481245]
[1771056197560,1.33681358,2065.6,2064.2,1.37481245]
[1771056198470,1.33681358,2065.6,2064.2,1.37964338]
[1771056199463,1.14801724,2065.4,2064.3,1.37481245]
[1771056199767,1.14801724,2065.0,2063.9,1.37481245]
[1771056199962,1.13461408,2064.8,2063.7,5.36551448]
[1771056200167,1.13461408,2064.6,2063.7,5.36551448]
[1771056200462,1.13372476,2064.8,2063.8,1.37481245]
[1771056200862,1.13372476,2064.8,2063.8,1.37994082]
[1771056201061,1.13372476,2064.8,2063.9,1.37481245]
[1771056201268,1.13372476,2064.8,2064.0,1.37481245]
[1771056201569,1.13372476,2064.8,2064.1,1.37481245]
[1771056202371,1.24732326,2065.0,2064.1,1.37481245]
[1771056202565,4.023,2065.1,2064.2,1.37481245]
[1771056202869,1.24629903,2065.2,2064.2,1.37481245]
[1771056204468,1.29513691,2065.2,2064.2,1.37481245]
[1771056207066,1.29513691,2065.2,2064.0,1.37481245]
[1771056207268,1.27552687,2064.8,2063.8,1.37994082]
[1771056207771,1.29273618,2064.6,2063.8,0.00512837]
[1771056207970,1.29273618,2064.4,2063.8,0.00512837]
[1771056208476,1.29273618,2064.4,2063.4,1.37481245]
[1771056209466,1.29273618,2064.4,2063.4,1.37858452]
[1771056210473,1.26654667,2064.0,2063.4,0.00377207]
[1771056210773,1.27201848,2064.0,2063.4,0.00377207]
[1771056211474,1.27201848,2064.0,2063.0,1.42250669]